bitfinex-derivatives/quotes_SOLF0:USTF0_20241215
["timestamp","ask_amount","ask_price","bid_price","bid_amount"]
[1734223853829,2.04,219.47,219.4,7.02142367]
[1734223854048,2.04,219.47,219.38,2.9891]
[1734223854049,2.04,219.47,219.38,10.01052367]
[1734223854240,2.04,219.47,219.38,7.02142367]
[1734223854745,2.2788,219.44,219.39,2.2793]
[1734223856144,2.2789,219.43,219.38,12.46576905]
[1734223857031,8.01593186,219.45,219.38,7.02142367]
[1734223857290,7.02142367,219.42,219.3,0.21698]
[1734223857442,7.02142367,219.4,219.32,7.02142367]
[1734223857734,2.04,219.39,219.32,7.02142367]
[1734223858333,2.04,219.39,219.32,12.44004946]
[1734223858536,2.04,219.39,219.32,7.02142367]
[1734223858828,2.2795,219.38,219.32,9.30152367]
[1734223860425,2.2797,219.36,219.3,0.21698]
[1734223860635,2.04,219.35,219.3,0.21698]
[1734223861646,4.3198,219.35,219.3,0.21698]
[1734223863431,2.2799,219.34,219.3,0.21698]
[1734223863634,2.04,219.35,219.3,0.21698]
[1734223867023,2.9088,219.45,219.33,7.02142367]
[1734223867245,7.02142367,219.43,219.35,7.02142367]
[1734223867440,7.02142367,219.43,219.37,7.02142367]
[1734223867641,2.04,219.42,219.37,7.02142367]
[1734223868724,2.04,219.42,219.37,9.30092367]
[1734223871621,2.04,219.43,219.39,7.02142367]
[1734223872527,5.1876,219.45,219.39,7.02142367]
[1734223872728,2.04,219.44,219.39,7.02142367]
[1734223873630,2.04,219.44,219.39,9.30072367]
[1734223875737,7.02142367,219.43,219.31,2.04]
[1734223875935,7.02142367,219.43,219.35,7.02142367]
[1734223876134,7.02142367,219.41,219.33,7.02142367]
[1734223876432,2.04,219.4,219.3,3.15288]
[1734223876637,2.04,219.4,219.33,7.02142367]
[1734223877236,2.04,219.4,219.34,2.2798]
[1734223877540,2.04,219.4,219.35,7.02142367]
[1734223877741,7.02142367,219.43,219.37,7.02142367]
[1734223877742,2.04,219.43,219.37,7.02142367]
[1734223877933,4.3189,219.43,219.38,2.2794]
[1734223879140,2.2789,219.43,219.38,2.2794]
[1734223879341,2.04,219.44,219.38,2.2794]
[1734223879540,2.04,219.44,219.39,9.30072367]
[1734223881846,2.04,219.44,219.4,2.2792]
[1734223882543,9.06142367,219.47,219.41,7.02142367]
[1734223883742,9.06142367,219.47,219.42,2.279]
[1734223883941,7.02142367,219.47,219.42,2.279]
[1734223884150,11.33992367,219.47,219.41,7.02142367]
[1734223884347,9.06142367,219.47,219.39,7.02142367]
[1734223884547,7.02142367,219.45,219.37,7.02142367]
[1734223884952,2.279,219.43,219.37,9.30092367]
[1734223885142,4.319,219.43,219.37,9.30092367]
[1734223885348,4.319,219.43,219.37,7.02142367]
[1734223885541,4.319,219.43,219.38,2.2794]
[1734223885850,2.04,219.43,219.38,2.2794]
[1734223886048,2.04,219.43,219.39,2.2793]
[1734223886551,2.04,219.45,219.42,2.279]
[1734223886755,2.04,219.45,219.4,7.02142367]
[1734223887652,2.04,219.47,219.4,7.02142367]
[1734223888044,9.29982367,219.48,219.4,7.02142367]
[1734223888248,2.04,219.47,219.4,7.02142367]
[1734223888649,2.04,219.47,219.42,2.279]
[1734223889046,2.04,219.47,219.38,7.02142367]
[1734223889047,9.30012367,219.46,219.38,7.02142367]
[1734223889548,2.2787,219.45,219.39,2.2793]
[1734223889952,2.04,219.47,219.4,9.30062367]
[1734223890153,2.04,219.47,219.4,7.02142367]
[1734223890547,2.04,219.47,219.42,7.02142367]
[1734223890754,2.04,219.47,219.43,2.2789]
[1734223893357,2.04,219.48,219.43,2.2789]
[1734223894552,11.34070802,219.49,219.44,7.02142367]
[1734223894754,1.4921,219.51,219.46,9.29992367]
[1734223894954,3.5321,219.51,219.46,7.02142367]
[1734223895151,14.88990637,219.51,219.46,7.02142367]
[1734223895354,11.35780637,219.5,219.46,7.02142367]
[1734223895555,3.5321,219.51,219.46,7.02142367]
[1734223896059,13.39537191,219.51,219.46,7.02142367]
[1734223896255,2.04,219.51,219.48,2.2784]
[1734223896857,13.39509781,219.51,219.48,2.2784]
[1734223897156,2.04,219.51,219.48,2.2784]
[1734223897760,2.04,219.51,219.47,2.2785]
[1734223898063,13.39362266,219.51,219.47,2.2785]
[1734223898263,2.04,219.51,219.47,2.2785]
[1734223898661,13.3941277,219.51,219.47,2.2785]
[1734223898861,2.04,219.51,219.47,2.2785]
[1734223900458,11.35604667,219.52,219.47,2.2785]
[1734223900659,2.04,219.52,219.47,2.2785]
[1734223900864,13.40110732,219.52,219.47,2.2785]
[1734223901057,2.04,219.52,219.47,2.2785]
[1734223901362,2.04,219.52,219.48,2.2784]
[1734223901860,2.04,219.52,219.46,7.02142367]
[1734223902062,2.04,219.52,219.46,9.29992367]
[1734223903259,2.2782,219.5,219.44,2.2787]
[1734223903759,7.02142367,219.51,219.43,7.02142367]
[1734223903961,2.2784,219.49,219.44,2.2788]
[1734223905462,2.04,219.48,219.4,5.38243261]
[1734223905664,7.02142367,219.47,219.36,2.04]
[1734223905859,7.02142367,219.47,219.39,7.02142367]
[1734223906669,9.30002367,219.47,219.41,2.2791]
[1734223907364,2.04,219.48,219.43,7.02142367]
[1734223907570,2.04,219.48,219.45,2.2787]
[1734223909669,4.3181,219.51,219.45,2.2787]
[1734223911560,2.04,219.51,219.45,7.02142367]
[1734223912465,2.278,219.53,219.47,7.02142367]
[1734223912767,4.318,219.53,219.47,7.02142367]
[1734223913064,2.278,219.53,219.47,9.29982367]
[1734223913367,4.318,219.53,219.47,9.29982367]
[1734223915475,2.04,219.53,219.45,7.02142367]
[1734223915773,2.04,219.53,219.46,2.2786]
[1734223915970,7.02142367,219.52,219.46,2.2786]
[1734223916672,2.2781,219.51,219.46,2.2786]
[1734223917373,21.69689752,219.51,219.46,2.2786]
[1734223917675,11.37931265,219.5,219.46,2.2786]
[1734223917874,11.37931265,219.49,219.47,2.2785]
[1734223918174,2.04,219.53,219.45,7.02142367]
[1734223918372,2.04,219.53,219.46,7.02142367]
[1734223918775,21.46588432,219.53,219.46,7.02142367]
[1734223918972,19.42588432,219.52,219.46,7.02142367]
[1734223919175,8.04244255,219.51,219.46,7.02142367]
[1734223919578,8.04244255,219.51,219.48,2.2784]
[1734223920073,11.38344177,219.52,219.48,2.2784]
[1734223920278,19.42677854,219.51,219.48,2.2784]
[1734223920581,11.38344177,219.5,219.48,2.2784]
[1734223920779,4.3179,219.53,219.47,2.2785]
[1734223921078,2.278,219.52,219.47,2.2785]
[1734223921480,21.70089166,219.52,219.47,2.2785]
[1734223921674,19.42289166,219.51,219.47,2.2785]
[1734223921977,11.38167416,219.51,219.47,2.2785]
[1734223922176,2.278,219.52,219.47,2.2785]
[1734223922177,11.38167416,219.5,219.47,2.2785]
[1734223922368,11.38167416,219.49,219.47,2.2785]
[1734223922573,2.278,219.52,219.47,2.2785]
[1734223922976,21.70728458,219.52,219.47,2.2785]
[1734223923278,19.42928458,219.51,219.47,2.2785]
[1734223923474,11.38537742,219.51,219.47,2.2785]
[1734223923676,11.38537742,219.5,219.47,2.2785]
[1734223923877,11.38537742,219.49,219.47,2.2785]
[1734223924075,2.278,219.52,219.47,2.2785]
[1734223924478,19.4358877,219.52,219.48,2.2784]
[1734223924777,2.04,219.53,219.48,2.2784]
[1734223924973,13.4298107,219.53,219.48,2.2784]
[1734223925169,4.3179,219.53,219.48,2.2784]
[1734223925477,15.70884496,219.53,219.48,2.2784]
[1734223925675,4.3179,219.53,219.48,2.2784]
[1734223925879,15.70971092,219.53,219.48,2.2784]
[1734223926076,4.3179,219.53,219.48,2.2784]
[1734223926679,11.39255655,219.56,219.49,7.02142367]
[1734223926979,13.41309494,219.55,219.51,7.02142367]
[1734223927170,2.02,219.55,219.51,7.02142367]
[1734223927676,2.02,219.55,219.52,2.278]
[1734223927883,24.70563653,219.57,219.52,2.278]
[1734223928181,1.4452,219.58,219.46,1.5082]
[1734223928182,2.02,219.58,219.53,7.02142367]
[1734223928375,11.39202903,219.58,219.53,7.02142367]
[1734223928577,11.39202903,219.58,219.55,7.02142367]
[1734223928790,43.73157167,219.59,219.55,7.02142367]
[1734223929281,2.02,219.59,219.55,7.02142367]
[1734223929685,2.02,219.59,219.55,9.29902367]
[1734223930083,2.02,219.59,219.55,2.2776]
[1734223930677,2.02,219.6,219.55,7.02142367]
[1734223930878,2.02,219.61,219.57,9.29882367]
[1734223931078,4.297,219.62,219.57,9.29882367]
[1734223931279,2.02,219.62,219.55,9.29902367]
[1734223931585,13.40106125,219.62,219.55,9.29902367]
[1734223931884,13.40106125,219.62,219.56,7.02142367]
[1734223931885,19.41800544,219.61,219.56,7.02142367]
[1734223932078,11.38106125,219.61,219.56,7.02142367]
[1734223932277,2.02,219.64,219.56,7.02142367]
[1734223932478,2.02,219.64,219.49,2.02]
[1734223932479,19.40647427,219.64,219.59,2.2773]
[1734223932685,19.40647427,219.63,219.59,2.2773]
[1734223932880,19.40647427,219.62,219.59,2.2773]
[1734223933184,2.2767,219.65,219.6,2.2772]
[1734223933377,8.03106747,219.65,219.6,2.2772]
[1734223933577,19.39874509,219.65,219.58,9.29872367]
[1734223933784,19.39874509,219.64,219.58,9.29872367]
[1734223934087,11.36767762,219.63,219.58,9.29872367]
[1734223934281,11.36212975,219.62,219.58,9.29872367]
[1734223934481,2.02,219.64,219.58,9.29872367]
[1734223935081,21.40926621,219.64,219.56,2.2775]
[1734223935286,19.38664086,219.63,219.56,9.29892367]
[1734223935487,11.36212977,219.63,219.56,9.29892367]
[1734223935683,11.36212977,219.62,219.56,7.02142367]
[1734223935879,2.277,219.62,219.57,2.2775]
[1734223936079,7.02142367,219.62,219.54,5.53531429]
[1734223936288,26.40295357,219.62,219.54,7.02142367]
[1734223936585,19.3815299,219.61,219.54,7.02142367]
[1734223936785,2.02,219.6,219.54,7.02142367]
[1734223936983,13.37759018,219.6,219.54,7.02142367]
[1734223937179,2.02,219.6,219.54,7.02142367]
[1734223937387,2.02,219.6,219.56,7.02142367]
[1734223939582,4.2972,219.6,219.56,7.02142367]
[1734223940089,2.02,219.6,219.56,7.02142367]
[1734223940287,2.02,219.6,219.56,9.29902367]
[1734223941183,2.02,219.6,219.58,7.02142367]
[1734223941383,2.02,219.63,219.58,7.02142367]
[1734223941991,4.2969,219.63,219.58,9.29872367]
[1734223942184,4.2969,219.63,219.54,5.55437776]
[1734223942386,2.02,219.63,219.57,7.02142367]
[1734223942586,3.4972,219.66,219.61,7.02142367]
[1734223942886,2.02,219.68,219.56,2.02]
[1734223943190,2.02,219.68,219.63,7.02142367]
[1734223945388,5.41999776,219.74,219.65,7.02142367]
[1734223945594,9.04142367,219.73,219.65,7.02142367]
[1734223945990,28.37084909,219.73,219.65,7.02142367]
[1734223946289,9.04142367,219.73,219.65,7.02142367]
[1734223946694,2.2761,219.71,219.65,9.29802367]
[1734223947695,4.2961,219.71,219.65,9.29802367]
[1734223947892,13.59933613,219.73,219.67,7.02142367]
[1734223948189,4.2959,219.73,219.67,7.02142367]
[1734223948590,2.2759,219.72,219.67,7.02142367]
[1734223949196,11.31256613,219.72,219.67,7.02142367]
[1734223949493,2.2761,219.7,219.67,7.02142367]
[1734223951487,13.58521403,219.72,219.67,7.02142367]
[1734223952099,11.30921403,219.72,219.67,7.02142367]
[1734223952295,2.02,219.73,219.68,2.2762]
[1734223952489,13.33061386,219.73,219.61,2.02]
[1734223952691,13.33061386,219.72,219.66,7.02142367]
[1734223952894,2.02,219.72,219.66,7.02142367]
[1734223953094,2.2761,219.7,219.66,7.02142367]
[1734223953291,2.02,219.72,219.66,7.02142367]
[1734223953694,4.296,219.72,219.66,7.02142367]
[1734223953900,2.02,219.72,219.68,7.02142367]
[1734223954491,2.02,219.72,219.68,9.29772367]
[1734223954697,41.67209463,219.78,219.7,7.02142367]
[1734223954997,41.67209463,219.78,219.65,2.02]
[1734223954998,2.02,219.77,219.72,7.02142367]
[1734223955299,41.67209463,219.78,219.72,7.02142367]
[1734223955493,2.02,219.78,219.72,7.02142367]
[1734223955893,2.02,219.78,219.74,7.02142367]
[1734223956101,2.2752,219.8,219.74,7.02142367]
[1734223956300,2.02,219.79,219.74,7.02142367]
[1734223957002,2.2754,219.77,219.72,7.02142367]
[1734223957202,9.04142367,219.79,219.7,7.02142367]
[1734223957794,9.04142367,219.79,219.72,7.02142367]
[1734223959400,2.02,219.79,219.72,7.02142367]
[1734223959701,4.2952,219.79,219.73,2.2758]
[1734223961602,9.04142367,219.79,219.72,7.02142367]
[1734223961796,9.04142367,219.79,219.69,2.2761]
[1734223961995,20.3430704,219.79,219.7,7.02142367]
[1734223962199,2.2756,219.76,219.7,9.29752367]
[1734223964206,2.2756,219.76,219.72,7.02142367]
[1734223965099,2.02,219.79,219.72,7.02142367]
[1734223965298,2.02,219.79,219.72,9.29732367]
[1734223966601,2.2754,219.77,219.72,9.29732367]
[1734223967305,2.2754,219.77,219.72,7.02142367]
[1734223967903,2.02,219.78,219.72,9.29732367]
[1734223968408,4.2953,219.78,219.72,9.29732367]
[1734223970607,2.2755,219.77,219.72,7.02142367]
[1734223971603,2.2755,219.76,219.72,7.02142367]
[1734223975212,15.62559203,219.78,219.73,2.2757]
[1734223975412,4.2954,219.78,219.73,2.2757]
[1734223975813,2.02,219.78,219.74,7.02142367]
[1734223976013,2.02,219.8,219.75,2.2756]
[1734223976408,2.2752,219.79,219.75,2.2756]
[1734223977012,11.33361307,219.81,219.77,2.2754]
[1734223977316,4.295,219.82,219.77,2.2754]
[1734223977908,15.62997055,219.82,219.77,2.2754]
[1734223978107,2.02,219.82,219.73,2.02]
[1734223978308,7.02142367,219.81,219.75,7.02142367]
[1734223978818,2.2752,219.8,219.75,7.02142367]
[1734223980212,2.2753,219.78,219.75,7.02142367]
[1734223982813,2.2756,219.76,219.7,5.45827012]
[1734223983010,2.2756,219.76,219.72,7.02142367]
[1734223984720,21.64134779,219.76,219.72,7.02142367]
[1734223984918,19.36574779,219.75,219.74,7.02142367]
[1734223985421,19.36574779,219.75,219.71,2.276]
[1734223985627,2.2758,219.73,219.7,7.02142367]
[1734223986126,21.64154779,219.73,219.7,7.02142367]
[1734223986326,19.36574779,219.72,219.7,7.02142367]
[1734223986525,11.3463537,219.72,219.7,7.02142367]
[1734223987024,11.3463537,219.71,219.7,7.02142367]
[1734223987223,8.03338632,219.71,219.7,7.02142367]
[1734223987420,19.37974002,219.72,219.7,7.02142367]
[1734223987728,19.37974002,219.71,219.7,7.02142367]
[1734223987930,11.3463537,219.74,219.7,7.02142367]
[1734223988134,19.37887718,219.73,219.7,7.02142367]
[1734223988432,8.03252348,219.72,219.7,7.02142367]
[1734223990326,10.30842348,219.72,219.7,7.02142367]
[1734223990634,11.3463537,219.71,219.7,7.02142367]
[1734223990833,8.03252348,219.71,219.7,7.02142367]
[1734223991133,2.2758,219.74,219.7,7.02142367]
[1734223991330,9.94251513,219.74,219.7,7.02142367]
[1734223991534,19.37887718,219.73,219.7,7.02142367]
[1734223991737,11.3463537,219.73,219.7,7.02142367]
[1734223992033,2.02,219.74,219.7,7.02142367]
[1734223993126,2.8216,219.8,219.67,5.32894813]
[1734223993127,11.38865774,219.75,219.72,7.02142367]
[1734223993328,11.38865774,219.75,219.74,7.02142367]
[1734223993627,2.02,219.79,219.74,7.02142367]
[1734223994335,2.2753,219.78,219.74,7.02142367]
[1734223994928,21.72300717,219.78,219.74,7.02142367]
[1734223995130,11.39656878,219.77,219.74,7.02142367]
[1734223995329,11.39656878,219.76,219.74,7.02142367]
[1734223995533,2.2753,219.78,219.74,7.02142367]
[1734223996035,21.72739658,219.78,219.74,7.02142367]
[1734223996337,11.39913064,219.77,219.74,7.02142367]
[1734223996633,11.39913064,219.76,219.74,7.02142367]
[1734223996839,2.02,219.79,219.74,7.02142367]
[1734223997435,21.476739,219.79,219.74,7.02142367]
[1734223997636,19.456739,219.78,219.75,2.2756]
[1734223997835,11.40186086,219.78,219.75,2.2756]
[1734223998137,11.40186086,219.77,219.75,2.2756]
[1734223998337,11.40186086,219.76,219.75,2.2756]
[1734223998637,2.02,219.79,219.75,2.2756]
[1734223999032,2.02,219.79,219.76,7.02142367]
[1734223999234,21.48257757,219.79,219.76,7.02142367]
[1734223999434,8.43152367,219.82,219.77,2.2754]
[1734223999435,19.46257757,219.78,219.77,2.2754]
[1734223999636,8.06071671,219.78,219.77,2.2754]
[1734223999937,25.12112468,219.8,219.77,2.2754]
[1734224000138,19.46257757,219.79,219.78,7.02142367]
[1734224000633,8.06071671,219.79,219.78,7.02142367]
[1734224001035,8.06071671,219.8,219.78,7.02142367]
[1734224003943,11.40186086,219.81,219.78,7.02142367]
[1734224004133,190.70906846,219.88,219.8,7.02142367]
[1734224004334,27.13398508,219.86,219.8,7.02142367]
[1734224004536,27.13398508,219.86,219.82,7.02142367]
[1734224004537,19.46000362,219.85,219.82,7.02142367]
[1734224004839,8.05614616,219.84,219.82,7.02142367]
[1734224005333,11.40385746,219.85,219.82,7.02142367]
[1734224005536,11.40385746,219.84,219.82,7.02142367]
[1734224005744,2.02,219.86,219.82,7.02142367]
[1734224006036,0.34669,219.87,219.82,7.02142367]
[1734224006632,0.34669,219.87,219.83,2.2748]
[1734224006831,25.44499897,219.87,219.83,2.2748]
[1734224007035,25.09830897,219.86,219.83,2.2748]
[1734224007240,25.09830897,219.85,219.83,2.2748]
[1734224007440,19.45185817,219.84,219.83,2.2748]
[1734224007640,8.05272889,219.84,219.83,2.2748]
[1734224007937,8.05272889,219.86,219.82,7.02142367]
[1734224008131,11.39912928,219.86,219.85,7.02142367]
[1734224008329,11.39912928,219.86,219.85,9.29602367]
[1734224008541,11.39912928,219.86,219.85,7.02142367]
[1734224008734,0.34669,219.87,219.85,7.02142367]
[1734224009536,0.34669,219.87,219.85,9.29602367]
[1734224009938,11.39912928,219.9,219.85,7.02142367]
[1734224010139,19.43144321,219.89,219.87,7.02142367]
[1734224010442,19.43144321,219.88,219.87,7.02142367]
[1734224010639,8.03231393,219.88,219.87,7.02142367]
[1734224010942,8.03231393,219.9,219.87,7.02142367]
[1734224013845,19.43144321,219.9,219.87,7.02142367]
[1734224014044,2.274,219.91,219.87,7.02142367]
[1734224018845,9.04142367,219.92,219.82,7.85789591]
[1734224019044,7.02142367,219.9,219.83,7.02142367]
[1734224019545,9.04142367,219.92,219.83,7.02142367]
[1734224019745,18.35828773,219.92,219.83,7.02142367]
[1734224019944,2.2742,219.89,219.85,7.02142367]
[1734224020942,2.2743,219.88,219.82,2.2748]
[1734224021141,2.2743,219.88,219.84,7.02142367]
[1734224023747,2.2741,219.9,219.84,7.02142367]
[1734224023946,2.02,219.91,219.84,7.02142367]
[1734224024148,13.35624084,219.91,219.84,7.02142367]
[1734224024348,2.02,219.91,219.84,7.02142367]
[1734224024744,13.35688524,219.91,219.84,7.02142367]
[1734224024949,2.02,219.91,219.84,7.02142367]
[1734224025751,2.2742,219.89,219.84,9.29612367]
[1734224029345,2.02,219.91,219.86,7.02142367]
[1734224029551,4.294,219.91,219.86,9.29582367]
[1734224032162,7.2393,219.93,219.88,9.29572367]
[1734224034453,5.2193,219.93,219.88,9.29572367]
[1734224034960,5.2193,219.93,219.88,2.2743]
[1734224035159,5.2193,219.93,219.89,7.02142367]
[1734224035458,3.7369,219.93,219.89,7.02142367]
[1734224039872,2.2737,219.93,219.89,7.02142367]
[1734224040876,19.383881,219.95,219.91,7.02142367]
[1734224041075,2.02,220.0,219.94,7.02142367]
[1734224041477,27.04458661,220.0,219.94,7.02142367]
[1734224041677,19.39324452,219.99,219.94,7.02142367]
[1734224041879,8.58252553,219.98,219.94,9.29492367]
[1734224042971,0.55424,219.98,219.94,9.29492367]
[1734224043376,0.55424,219.98,219.96,7.02142367]
[1734224044079,19.9528913,219.98,219.96,7.02142367]
[1734224044280,11.91919899,219.98,219.96,7.02142367]
[1734224044581,0.55424,219.98,219.96,7.02142367]
[1734224047076,0.55424,219.98,219.96,9.29482367]
[1734224047775,0.55424,219.98,219.97,2.2733]
[1734224050277,11.3864489,220.02,219.97,2.2733]
[1734224050580,2.2728,220.02,219.98,7.02142367]
[1734224051171,2.2731,220.0,219.95,2.2735]
[1734224051371,26.45295688,220.02,219.94,7.02142367]
[1734224051581,19.42614307,220.01,219.94,7.02142367]
[1734224051783,10.05867395,220.0,219.94,7.02142367]
[1734224051979,11.38746912,219.99,219.94,7.02142367]
[1734224052480,2.02,220.0,219.94,7.02142367]
[1734224052784,2.2733,219.98,219.94,7.02142367]
[1734224055584,2.02,220.0,219.96,9.29482367]
[1734224055779,2.273,220.01,219.98,7.02142367]
[1734224056686,13.65479136,220.01,219.98,7.02142367]
[1734224056887,2.273,220.01,219.98,7.02142367]
[1734224057689,13.65387388,220.01,219.98,7.02142367]
[1734224057890,2.273,220.01,219.98,7.02142367]
[1734224058589,11.37949278,220.02,219.98,7.02142367]
[1734224058891,11.37949278,220.01,219.98,7.02142367]
[1734224059088,2.02,220.03,219.98,7.02142367]
[1734224059593,2.2728,220.02,219.98,7.02142367]
[1734224059786,21.68731941,220.02,219.98,7.02142367]
[1734224060084,19.41451941,220.01,219.98,7.02142367]
[1734224060289,8.03704437,220.0,219.98,7.02142367]
[1734224061891,8.03704437,220.0,219.98,9.29462367]
[1734224062083,19.41451941,220.0,219.98,9.29462367]
[1734224062394,11.37747504,219.99,219.98,9.29462367]
[1734224062587,2.2728,220.03,219.98,9.29462367]
[1734224063384,27.31820146,220.03,219.98,9.29462367]
[1734224063591,19.4101982,220.02,219.98,9.29462367]
[1734224063791,8.03523093,220.01,219.98,9.29462367]
[1734224064189,8.03523093,220.01,220.0,7.02142367]
[1734224064393,8.03523093,220.01,220.0,9.29442367]
[1734224064688,11.37496727,220.02,220.0,9.29442367]
[1734224064891,11.37496727,220.01,220.0,9.29442367]
[1734224065387,11.37496727,220.01,220.0,7.02142367]
[1734224065594,2.2723,220.07,220.01,2.2728]
[1734224065890,9.78572367,220.09,220.02,7.02142367]
[1734224066094,2.2724,220.06,220.0,2.273]
[1734224066397,2.2724,220.06,220.01,7.02142367]
[1734224066597,25.04768331,220.07,220.01,7.02142367]
[1734224066796,25.04768331,220.06,220.01,7.02142367]
[1734224066993,0.7443,220.09,220.01,7.02142367]
[1734224067188,2.7643,220.09,220.01,7.02142367]
[1734224067386,22.17253354,220.09,220.01,7.02142367]
[1734224067587,2.2725,220.05,220.01,7.02142367]
[1734224071599,13.64896386,220.05,220.01,7.02142367]
[1734224071894,2.2725,220.05,220.02,7.02142367]
[1734224072994,13.65715968,220.05,220.02,7.02142367]
[1734224073189,2.2725,220.05,220.02,7.02142367]
[1734224074299,27.35117959,220.05,220.02,7.02142367]
[1734224074494,25.07867959,220.04,220.02,7.02142367]
[1734224074697,19.43551986,220.03,220.02,7.02142367]
[1734224074893,8.04569126,220.03,220.02,7.02142367]
[1734224075297,13.68966896,220.03,220.02,7.02142367]
[1734224075594,8.04569126,220.03,220.02,7.02142367]
[1734224075799,8.04569126,220.03,220.0,2.273]
[1734224075800,13.68975746,220.03,220.0,2.273]
[1734224076000,8.04569126,220.03,220.02,7.02142367]
[1734224076197,2.2724,220.07,220.02,7.02142367]
[1734224076198,13.68968453,220.06,220.02,7.02142367]
[1734224076496,19.43973021,220.05,220.02,7.02142367]
[1734224076702,8.04569126,220.04,220.02,7.02142367]
[1734224076900,8.04569126,220.04,220.03,2.2727]
[1734224077105,8.04569126,220.04,220.02,7.02142367]
[1734224077106,8.04569126,220.05,220.02,7.02142367]
[1734224077299,11.39403895,220.08,220.04,7.02142367]
[1734224077300,13.69092181,220.07,220.04,7.02142367]
[1734224077599,13.69092181,220.07,220.06,7.02142367]
[1734224077799,19.44305739,220.07,220.06,7.02142367]
[1734224078098,25.08828794,220.07,220.06,7.02142367]
[1734224078498,19.44305739,220.07,220.06,7.02142367]
[1734224078905,8.04569126,220.07,220.06,7.02142367]
[1734224079108,0.7443,220.09,220.06,7.02142367]
[1734224079597,25.83267228,220.09,220.06,9.29372367]
[1734224079796,25.08837228,220.08,220.06,9.29372367]
[1734224079997,19.44305739,220.07,220.06,9.29372367]
[1734224080194,8.04569126,220.07,220.06,9.29372367]
[1734224080395,14.43538315,220.09,220.06,9.29372367]
[1734224080600,11.39736613,220.08,220.06,2.2723]
[1734224080802,11.39736613,220.08,220.07,7.02142367]
[1734224081000,8.05134217,220.08,220.07,7.02142367]
[1734224081299,0.7443,220.09,220.07,7.02142367]
[1734224081498,8.79564217,220.09,220.07,7.02142367]
[1734224082300,0.7443,220.09,220.07,7.02142367]
[1734224082509,12.14166613,220.09,220.07,7.02142367]
[1734224082694,0.7443,220.09,220.07,7.02142367]
[1734224084700,2.2719,220.11,220.07,7.02142367]
[1734224084904,11.39819947,220.12,220.07,7.02142367]
[1734224085100,19.45032716,220.11,220.07,7.02142367]
[1734224085397,2.02,220.14,220.07,9.29372367]
[1734224085796,10.06997354,220.14,220.07,9.29372367]
[1734224086004,10.06997354,220.14,220.07,7.02142367]
[1734224086005,8.04997354,220.13,220.07,7.02142367]
[1734224086201,2.02,220.14,220.07,7.02142367]
[1734224086202,7.66465926,220.14,220.07,7.02142367]
[1734224086406,27.11076116,220.14,220.07,7.02142367]
[1734224086601,25.09076116,220.13,220.07,7.02142367]
[1734224086806,19.4461019,220.12,220.07,7.02142367]
[1734224087006,19.4461019,220.11,220.07,7.02142367]
[1734224087206,11.39612836,220.1,220.07,7.02142367]
[1734224087505,11.39612836,220.09,220.05,2.2724]
[1734224087812,8.46072367,220.13,220.05,7.02142367]
[1734224088002,22.15570054,220.13,220.05,7.02142367]
[1734224088203,19.44707725,220.12,220.05,7.02142367]
[1734224088610,8.05040577,220.11,220.05,7.02142367]
[1734224089610,8.05040577,220.11,220.07,7.02142367]
[1734224090609,10.32230577,220.11,220.07,7.02142367]
[1734224090905,11.39667148,220.1,220.07,7.02142367]
[1734224091311,11.39667148,220.09,220.07,7.02142367]
[1734224091510,2.2719,220.11,220.07,7.02142367]
[1734224091707,1.4393,220.13,220.07,7.02142367]
[1734224091906,33.5542939,220.13,220.05,7.02142367]
[1734224092106,25.09357023,220.12,220.05,7.02142367]
[1734224092311,19.44871877,220.11,220.05,7.02142367]
[1734224092512,19.44871877,220.1,220.05,7.02142367]
[1734224092709,19.44871877,220.1,219.99,2.273]
[1734224092710,2.2725,220.05,219.99,2.273]
[1734224093008,2.2725,220.05,220.01,7.02142367]
[1734224093814,21.72121877,220.05,220.01,7.02142367]
[1734224094015,11.39764694,220.04,220.01,7.02142367]
[1734224094207,2.2725,220.05,220.01,7.02142367]
[1734224095406,11.40195198,220.05,220.01,7.02142367]
[1734224095714,11.40195198,220.04,220.01,7.02142367]
[1734224095916,2.2724,220.07,220.01,7.02142367]
[1734224096107,2.2724,220.07,220.03,7.02142367]
[1734224096513,27.37780287,220.07,220.03,7.02142367]
[1734224096713,27.37780287,220.06,220.03,7.02142367]